{"text_format":"1","workbook":"xlsx","n_sheets":1,"sheets":["Feuil1"],"not_rendered":{"charts":0,"images":0,"macros":1,"external_links":0,"defined_names":0,"comments":0,"pivot_tables":0},"unopened":[],"bounds":{"document_bytes":16777216,"sheet_cells":100000,"rows_first":2000,"rows_last":500,"rows_between":2000,"halvings":0,"cell_chars":16384,"cell_head_chars":4096},"cells_cut":0,"cells_raw":0,"read":"whole","date_system":"1900"}

{"sheet":"Feuil1","index":0,"n_rows":31,"n_cols":20,"rows_kept":31,"cut":false,"hidden":false,"merged":[[1,3,1,17]]}
[]
[null,"DATE & HEURE","TEMPERATURE DU CORPS","RELEVE DES ENTREES (cl)",null,null,null,null,null,null,null,null,null,null,null,null,null,null,"TOTAL ENTREE","TOTAL SORTIE"]
[null,"29/11/2023 20H AU 30/11/2023 8H","X",19,19,12,10,10,null,null,null,null,null,null,null,null,null,null,{"$f":"SUM(D3:R3)","v":70},1.2350000000000001]
[null,"30/11/2023 8H AU 30/11/2023 20H","X",10,19,19,19,19,null,null,null,null,null,null,null,null,null,null,{"$f":"SUM(D4:R4)","v":86},0.9]
[null,"30/11/2023 20H AU 01/12/2023 8H","X",19,19,19,19,10,null,null,null,null,null,null,null,null,null,null,86,1]
[null,"01/12/2023 8H AU 01/12/2023 20H","X",19,19,19,19,19,12,12,19,null,null,null,null,null,null,null,138,0.9]
[null,"01/12/2023 20H AU 02/12/2023 8H","X",19,19,19,19,39,null,null,null,null,null,null,null,null,null,null,115,1.2]
[null,"02/12/2023 8H AU 02/12/2023 20H",38,19,19,19,20,12,19,19,19,19,19,null,null,null,null,null,184,0.6]
[null,"02/12/2023 20H AU 03/12/2023 8H","X",19,19,19,20,null,null,null,null,null,null,null,null,null,null,null,77,0.8]
[null,"03/12/2023 8H AU 03/12/2023 20H",39,19,19,19,null,null,null,null,null,null,null,null,null,null,null,null,57,2.1]
[null,null,null,null,null,null,null,null,null,null,null,null,null,null,null,null,null,null,0]
[null,null,null,null,null,null,null,null,null,null,null,null,null,null,null,null,null,null,0]
[null,null,null,null,null,null,null,null,null,null,null,null,null,null,null,null,null,null,0]
[null,null,null,null,null,null,null,null,null,null,null,null,null,null,null,null,null,null,0]
[null,null,null,null,null,null,null,null,null,null,null,null,null,null,null,null,null,null,0]
[null,null,null,null,null,null,null,null,null,null,null,null,null,null,null,null,null,null,0]
[null,null,null,null,null,null,null,null,null,null,null,null,null,null,null,null,null,null,0]
[null,null,null,null,null,null,null,null,null,null,null,null,null,null,null,null,null,null,0]
[null,null,null,null,null,null,null,null,null,null,null,null,null,null,null,null,null,null,0]
[null,null,null,null,null,null,null,null,null,null,null,null,null,null,null,null,null,null,0]
[null,null,null,null,null,null,null,null,null,null,null,null,null,null,null,null,null,null,0]
[null,null,null,null,null,null,null,null,null,null,null,null,null,null,null,null,null,null,0]
[null,null,null,null,null,null,null,null,null,null,null,null,null,null,null,null,null,null,0]
[null,null,null,null,null,null,null,null,null,null,null,null,null,null,null,null,null,null,0]
[null,null,null,null,null,null,null,null,null,null,null,null,null,null,null,null,null,null,0]
[null,null,null,null,null,null,null,null,null,null,null,null,null,null,null,null,null,null,0]
[null,null,null,null,null,null,null,null,null,null,null,null,null,null,null,null,null,null,0]
[null,null,null,null,null,null,null,null,null,null,null,null,null,null,null,null,null,null,0]
[null,null,null,null,null,null,null,null,null,null,null,null,null,null,null,null,null,null,0]
[null,null,null,null,null,null,null,null,null,null,null,null,null,null,null,null,null,null,0]
[null,null,null,null,null,null,null,null,null,null,null,null,null,null,null,null,null,null,0]